[Event "FIDE World Junior U20-ch Girls 2025"]
[Site "Petrovac"]
[Date "2025.02.25"]
[Round "1.16"]
[White "Zelbova, Lada"]
[Black "Nurgaliyeva, Zarina"]
[Result "1-0"]
[Annotator "ChessBase"]
[ECO "E53"]
[WhiteElo "1994"]
[BlackElo "2265"]
[PlyCount "93"]
[EventDate "2025.02.23"]
[EventType "swiss"]
[EventCountry "MNE"]
[SourceTitle "playchess.com"]
[Source "ChessBase"]
[SourceQuality "1"]
[TimeControl "40/5400+30:1800+30"]

1. d4 {[%emt 0:00:05]} Nf6 {[%emt 0:00:09]} 2. c4 {[%emt 0:00:14]} e6 {[%emt 0:00:14]} 3. Nf3 {[%emt 0:00:14]} d5 {[%emt 0:00:36]} 4. Nc3 {[%emt 0:00:18]} Bb4 {[%emt 0:02:20]} 5. e3 {[%emt 0:06:32]} O-O {[%emt 0:00:39]} 6. Bd3 {[%emt 0:03:30]} c5 {[%emt 0:09:33]} 7. a3 {[%emt 0:03:18]} Ba5 {[%emt 0:07:03]} 8. O-O {[%emt 0:03:22]} dxc4 {[%emt 0:04:14]} 9. Bxc4 {[%emt 0:00:33]} a6 {[%emt 0:00:35]} 10. dxc5 {[%emt 0:09:12]} Bxc3 {[%emt 0:01:32]} 11. bxc3 {[%emt 0:01:11]} Qa5 {[%emt 0:06:30]} 12. Qe2 {[%emt 0:03:39]} Nc6 {[%emt 0:12:56]} 13. e4 {[%emt 0:09:11]} e5 {[%emt 0:00:33]} 14. h3 {[%emt 0:04:55]} Qxc5 {[%emt 0:02:11]} 15. a4 {[%emt 0:03:10]} Na5 {[%emt 0:15:28]} 16. Ba2 {[%emt 0:01:58]} Kh8 {[%emt 0:01:17]} 17. Ng5 {[%emt 0:06:56]} Qe7 {[%emt 0:01:48]} 18. Bd5 {[%emt 0:07:44]} Nxd5 {[%emt 0:06:01]} 19. exd5 {[%emt 0:01:57]} Bf5 {[%emt 0:00:46]} 20. d6 {[%emt 0:02:02]} Qf6 {[%emt 0:05:14]} 21. Nf3 {[%emt 0:01:43]} Nb3 {[%emt 0:11:12]} 22. Ra2 {[%emt 0:04:21]} e4 {[%emt 0:06:07]} 23. Nd2 {[%emt 0:01:14]} Nxc1 {[%emt 0:01:11]} 24. Rxc1 {[%emt 0:00:09]} Qg6 {[%emt 0:02:04]} 25. Rb2 {[%emt 0:02:47]} Rfe8 {[%emt 0:00:51]} 26. Nc4 {[%emt 0:01:38]} Bxh3 {[%emt 0:00:08]} 27. Qf1 {[%emt 0:06:37]} Rab8 {[%emt 0:00:47]} 28. a5 {[%emt 0:01:19]} Qg5 {[%emt 0:01:17]} 29. Rcb1 {[%emt 0:04:28]} Rbc8 {[%emt 0:01:02]} 30. d7 {[%emt 0:01:01]} Bxd7 {[%emt 0:00:16]} 31. Nd6 {[%emt 0:00:34]} Qxa5 {[%emt 0:00:48]} 32. Nxe8 {[%emt 0:02:35]} Bxe8 {[%emt 0:00:05]} 33. Rxb7 {[%emt 0:00:46]} Qxc3 {[%emt 0:00:41]} 34. Qxa6 {[%emt 0:03:24]} e3 {[%emt 0:00:03]} 35. Qe2 {[%emt 0:01:08]} exf2+ {[%emt 0:00:49]} 36. Qxf2 {[%emt 0:00:17]} g6 {[%emt 0:00:55]} 37. Re1 {[%emt 0:00:51]} Qc6 {[%emt 0:00:31]} 38. Rbe7 {[%emt 0:00:51]} Kg8 {[%emt 0:00:30]} 39. Qd4 {[%emt 0:01:23]} Ra8 {[%emt 0:00:30]} 40. Kh1 {[%emt 0:01:08]} h6 {[%emt 0:00:32]} 41. Kh2 {[%emt 0:31:01]} h5 {[%emt 0:30:27]} 42. R1e2 {[%emt 0:00:00]} Kh7 {[%emt 0:00:00]} 43. Qe5 {[%emt 0:00:00]} Ra4 {[%emt 0:00:00]} 44. Rxe8 {[%emt 0:00:00]} Rh4+ {[%emt 0:00:00]} 45. Kg1 {[%emt 0:00:00]} Qb6+ {[%emt 0:00:00]} 46. Rf2 {[%emt 0:00:00]} Qb1+ {[%emt 0:00:00]} 47. Qe1 {[%emt 0:00:00]} 1-0

[Event "FIDE World Junior U20-ch Girls 2025"]
[Site "Petrovac"]
[Date "2025.02.25"]
[Round "1.17"]
[White "Balabayeva, Xeniya"]
[Black "Trifoi, Mihaela-Ioana"]
[Result "1-0"]
[Annotator "ChessBase"]
[ECO "D02"]
[WhiteElo "2264"]
[BlackElo "1990"]
[PlyCount "117"]
[EventDate "2025.02.23"]
[EventType "swiss"]
[EventCountry "MNE"]
[SourceTitle "playchess.com"]
[Source "ChessBase"]
[SourceQuality "1"]
[TimeControl "40/5400+30:1800+30"]

1. d4 {[%emt 0:00:03]} d5 {[%emt 0:00:14]} 2. Nf3 {[%emt 0:00:18]} a6 {[%emt 0:05:40]} 3. Bf4 {[%emt 0:01:16]} c5 {[%emt 0:01:06]} 4. dxc5 {[%emt 0:07:30]} Nc6 {[%emt 0:00:07]} 5. c4 {[%emt 0:14:34]} e6 {[%emt 0:04:41]} 6. Nc3 {[%emt 0:00:32]} d4 {[%emt 0:00:55]} 7. Ne4 {[%emt 0:00:59]} Bxc5 {[%emt 0:01:49]} 8. Nxc5 {[%emt 0:00:13]} Qa5+ {[%emt 0:00:05]} 9. Qd2 {[%emt 0:00:51]} Qxc5 {[%emt 0:00:15]} 10. e3 {[%emt 0:00:06]} dxe3 {[%emt 0:06:04]} 11. Bxe3 {[%emt 0:02:03]} Qb4 {[%emt 0:01:06]} 12. O-O-O {[%emt 0:12:37]} Qxd2+ {[%emt 0:09:24]} 13. Nxd2 {[%emt 0:00:16]} Nge7 {[%emt 0:04:59]} 14. Ne4 {[%emt 0:00:40]} O-O {[%emt 0:00:48]} 15. Bb6 {[%emt 0:04:45]} e5 {[%emt 0:06:37]} 16. Nd6 {[%emt 0:12:51]} Be6 {[%emt 0:01:41]} 17. Be2 {[%emt 0:01:40]} Nc8 {[%emt 0:05:40]} 18. Nxc8 {[%emt 0:05:15]} Rfxc8 {[%emt 0:01:34]} 19. b3 {[%emt 0:00:05]} a5 {[%emt 0:03:20]} 20. a4 {[%emt 0:03:54]} Nb8 {[%emt 0:12:09]} 21. Bf3 {[%emt 0:06:14]} Nd7 {[%emt 0:05:28]} 22. Rxd7 {[%emt 0:03:04]} Bxd7 {[%emt 0:00:07]} 23. Bxb7 {[%emt 0:00:05]} Rxc4+ {[%emt 0:00:13]} 24. bxc4 {[%emt 0:00:04]} Rb8 {[%emt 0:00:06]} 25. Bf3 {[%emt 0:00:06]} Rxb6 {[%emt 0:00:10]} 26. Rd1 {[%emt 0:00:06]} Be8 {[%emt 0:01:14]} 27. Rd8 {[%emt 0:00:06]} Kf8 {[%emt 0:00:33]} 28. c5 {[%emt 0:00:05]} Re6 {[%emt 0:06:29]} 29. c6 {[%emt 0:01:08]} e4 {[%emt 0:01:46]} 30. c7 {[%emt 0:02:35]} Rc6+ {[%emt 0:00:30]} 31. Kb2 {[%emt 0:00:15]} Rxc7 {[%emt 0:00:06]} 32. Bxe4 {[%emt 0:00:05]} Rc4 {[%emt 0:05:14]} 33. Bd3 {[%emt 0:01:48]} Rb4+ {[%emt 0:00:24]} 34. Kc3 {[%emt 0:00:04]} Ke7 {[%emt 0:00:27]} 35. Ra8 {[%emt 0:00:04]} Bc6 {[%emt 0:06:05]} 36. Ra7+ {[%emt 0:00:35]} Rb7 {[%emt 0:06:16]} 37. Rxa5 {[%emt 0:00:15]} Bxg2 {[%emt 0:00:21]} 38. Rg5 {[%emt 0:00:08]} Bc6 {[%emt 0:00:09]} 39. a5 {[%emt 0:00:06]} g6 {[%emt 0:00:35]} 40. a6 {[%emt 0:00:59]} Rd7 {[%emt 0:03:08]} 41. Ra5 {[%emt 0:38:51]} Ra7 {[%emt 0:03:25]} 42. Kd4 {[%emt 0:00:00]} Kd6 {[%emt 0:01:14]} 43. f4 {[%emt 0:00:00]} h6 {[%emt 0:01:55]} 44. h4 {[%emt 0:00:00]} Rd7 {[%emt 0:22:21]} 45. Bc4 {[%emt 0:00:00]} Ra7 {[%emt 0:00:00]} 46. h5 {[%emt 0:00:00]} Bf3 {[%emt 0:00:59]} 47. Ke3 {[%emt 0:00:00]} Bxh5 {[%emt 0:02:56]} 48. Bd5 {[%emt 0:00:00]} g5 {[%emt 0:01:18]} 49. f5 {[%emt 0:00:00]} Bg4 {[%emt 0:01:03]} 50. Bb7 {[%emt 0:00:00]} f6 {[%emt 0:00:38]} 51. Rd5+ {[%emt 0:00:00]} Ke7 {[%emt 0:00:51]} 52. Rc5 {[%emt 0:00:26]} h5 {[%emt 0:00:28]} 53. Ke4 {[%emt 0:04:27]} Be2 {[%emt 0:01:39]} 54. Rc7+ {[%emt 0:00:12]} Kd8 {[%emt 0:00:22]} 55. Rc6 {[%emt 0:00:24]} Ke7 {[%emt 0:00:08]} 56. Kd4 {[%emt 0:00:25]} h4 {[%emt 0:00:42]} 57. Re6+ {[%emt 0:00:09]} Kf7 {[%emt 0:00:32]} 58. Rxe2 {[%emt 0:00:05]} g4 {[%emt 0:00:28]} 59. Re4 {[%emt 0:00:07]} 1-0

[Event "FIDE World Junior U20-ch Girls 2025"]
[Site "Petrovac"]
[Date "2025.02.25"]
[Round "1.18"]
[White "Beber, Anja"]
[Black "Hrebenshchykova, Yelyzaveta"]
[Result "0-1"]
[Annotator "ChessBase"]
[ECO "A45"]
[WhiteElo "1988"]
[BlackElo "2259"]
[PlyCount "90"]
[EventDate "2025.02.23"]
[EventType "swiss"]
[EventCountry "MNE"]
[SourceTitle "playchess.com"]
[Source "ChessBase"]
[SourceQuality "1"]
[TimeControl "40/5400+30:1800+30"]

1. d4 {[%emt 0:00:06]} Nf6 {[%emt 0:00:04]} 2. Bf4 {[%emt 0:00:15]} g6 {[%emt 0:02:47]} 3. e3 {[%emt 0:00:44]} Bg7 {[%emt 0:00:40]} 4. Nf3 {[%emt 0:00:22]} d6 {[%emt 0:03:52]} 5. h3 {[%emt 0:00:48]} O-O {[%emt 0:00:22]} 6. Be2 {[%emt 0:00:39]} Nc6 {[%emt 0:04:50]} 7. O-O {[%emt 0:07:13]} Nd7 {[%emt 0:00:48]} 8. Bh2 {[%emt 0:05:14]} e5 {[%emt 0:02:58]} 9. c3 {[%emt 0:10:47]} f5 {[%emt 0:06:59]} 10. Nbd2 {[%emt 0:11:33]} e4 {[%emt 0:06:15]} 11. Ne1 {[%emt 0:00:11]} Qe7 {[%emt 0:00:26]} 12. Nc2 {[%emt 0:00:55]} g5 {[%emt 0:11:11]} 13. b4 {[%emt 0:04:53]} Nf6 {[%emt 0:04:04]} 14. c4 {[%emt 0:09:27]} Bh6 {[%emt 0:04:35]} 15. Nb3 {[%emt 0:09:45]} Kh8 {[%emt 0:10:44]} 16. Kh1 {[%emt 0:15:15]} Rg8 {[%emt 0:06:44]} 17. Rg1 {[%emt 0:03:24]} Bd7 {[%emt 0:07:26]} 18. Qd2 {[%emt 0:01:52]} Raf8 {[%emt 0:00:20]} 19. g4 {[%emt 0:10:59]} Qd8 {[%emt 0:10:04]} 20. Raf1 {[%emt 0:01:58]} Ne7 {[%emt 0:02:54]} 21. Qd1 {[%emt 0:01:50]} Ng6 {[%emt 0:01:58]} 22. Nd2 {[%emt 0:00:52]} Qc8 {[%emt 0:06:38]} 23. gxf5 {[%emt 0:02:11]} Bxf5 {[%emt 0:00:04]} 24. Bg4 {[%emt 0:00:08]} b5 {[%emt 0:03:41]} 25. cxb5 {[%emt 0:01:05]} Nh4 {[%emt 0:00:30]} 26. Rg3 {[%emt 0:00:21]} Qb7 {[%emt 0:01:14]} 27. a4 {[%emt 0:00:24]} Nxg4 {[%emt 0:01:19]} 28. hxg4 {[%emt 0:00:14]} Be6 {[%emt 0:00:01]} 29. Ne1 {[%emt 0:00:23]} Bd5 {[%emt 0:00:40]} 30. Rh3 {[%emt 0:00:18]} Bg7 {[%emt 0:00:19]} 31. Bg3 {[%emt 0:00:39]} Bxd4 {[%emt 0:00:54]} 32. Bxh4 {[%emt 0:00:37]} gxh4 {[%emt 0:00:03]} 33. exd4 {[%emt 0:00:44]} e3+ {[%emt 0:00:41]} 34. Ndf3 {[%emt 0:00:05]} e2 {[%emt 0:00:26]} 35. Qxe2 {[%emt 0:00:13]} Rxg4 {[%emt 0:00:41]} 36. Kh2 {[%emt 0:00:17]} Qc8 {[%emt 0:00:34]} 37. Nxh4 {[%emt 0:01:44]} Re8 {[%emt 0:00:35]} 38. Qd2 {[%emt 0:00:24]} Qe6 {[%emt 0:00:22]} 39. f3 {[%emt 0:00:23]} Rg7 {[%emt 0:00:43]} 40. Neg2 {[%emt 0:00:29]} Rf8 {[%emt 0:00:33]} 41. Nf4 {[%emt 0:30:26]} Qf7 {[%emt 0:30:02]} 42. Nfg2 {[%emt 0:00:44]} Rfg8 {[%emt 0:00:33]} 43. Qh6 {[%emt 0:00:29]} Be6 {[%emt 0:00:20]} 44. Re1 {[%emt 0:00:36]} Bxh3 {[%emt 0:00:12]} 45. Kxh3 {[%emt 0:00:09]} Rxg2 {[%emt 0:00:36]} 0-1

[Event "FIDE World Junior U20-ch Girls 2025"]
[Site "Petrovac"]
[Date "2025.02.25"]
[Round "1.19"]
[White "Kurmangaliyeva, Liya"]
[Black "Shohradova, Leyla"]
[Result "1-0"]
[Annotator "ChessBase"]
[ECO "C19"]
[WhiteElo "2251"]
[BlackElo "1986"]
[PlyCount "65"]
[EventDate "2025.02.23"]
[EventType "swiss"]
[EventCountry "MNE"]
[SourceTitle "playchess.com"]
[Source "ChessBase"]
[SourceQuality "1"]
[TimeControl "40/5400+30:1800+30"]

1. e4 {[%emt 0:00:08]} e6 {[%emt 0:00:11]} 2. d4 {[%emt 0:00:11]} d5 {[%emt 0:00:06]} 3. Nc3 {[%emt 0:00:13]} Bb4 {[%emt 0:00:42]} 4. e5 {[%emt 0:00:25]} Ne7 {[%emt 0:00:16]} 5. a3 {[%emt 0:00:38]} Bxc3+ {[%emt 0:00:06]} 6. bxc3 {[%emt 0:00:04]} c5 {[%emt 0:00:06]} 7. h4 {[%emt 0:00:24]} Qc7 {[%emt 0:01:42]} 8. Rh3 {[%emt 0:00:50]} Bd7 {[%emt 0:01:53]} 9. a4 {[%emt 0:14:38]} Nbc6 {[%emt 0:09:02]} 10. h5 {[%emt 0:06:22]} h6 {[%emt 0:00:57]} 11. Ba3 {[%emt 0:02:46]} b6 {[%emt 0:06:28]} 12. Nf3 {[%emt 0:06:22]} Na5 {[%emt 0:08:29]} 13. Bd3 {[%emt 0:19:09]} c4 {[%emt 0:30:34]} 14. Be2 {[%emt 0:02:11]} Bc6 {[%emt 0:01:02]} 15. Qd2 {[%emt 0:06:19]} O-O-O {[%emt 0:04:30]} 16. Kf1 {[%emt 0:05:48]} Rdg8 {[%emt 0:03:17]} 17. g4 {[%emt 0:03:12]} Nb7 {[%emt 0:05:09]} 18. Qe3 {[%emt 0:06:24]} Be8 {[%emt 0:07:12]} 19. Ke1 {[%emt 0:01:49]} Qd7 {[%emt 0:01:15]} 20. Kd2 {[%emt 0:01:17]} a5 {[%emt 0:02:51]} 21. Rhh1 {[%emt 0:00:45]} Kc7 {[%emt 0:04:44]} 22. Nh4 {[%emt 0:01:46]} g6 {[%emt 0:03:34]} 23. f4 {[%emt 0:04:24]} Qd8 {[%emt 0:03:17]} 24. Raf1 {[%emt 0:04:31]} Bxa4 {[%emt 0:01:21]} 25. f5 {[%emt 0:00:18]} g5 {[%emt 0:01:10]} 26. fxe6 {[%emt 0:02:19]} gxh4 {[%emt 0:01:37]} 27. Bxe7 {[%emt 0:00:52]} Qxe7 {[%emt 0:00:59]} 28. Rxf7 {[%emt 0:00:06]} Rg7 {[%emt 0:00:16]} 29. Rxe7+ {[%emt 0:00:37]} Rxe7 {[%emt 0:00:01]} 30. g5 {[%emt 0:00:32]} hxg5 {[%emt 0:00:39]} 31. Qxg5 {[%emt 0:00:10]} Rhh7 {[%emt 0:00:06]} 32. Bg4 {[%emt 0:01:37]} Nd8 {[%emt 0:00:00]} 33. Qf6 {[%emt 0:00:00]} 1-0

[Event "FIDE World Junior U20-ch Girls 2025"]
[Site "Petrovac"]
[Date "2025.02.25"]
[Round "1.20"]
[White "Gasparyan, Milena"]
[Black "Kaldarova, Ayaulym"]
[Result "1/2-1/2"]
[Annotator "ChessBase"]
[ECO "C11"]
[WhiteElo "1986"]
[BlackElo "2248"]
[PlyCount "61"]
[EventDate "2025.02.23"]
[EventType "swiss"]
[EventCountry "MNE"]
[SourceTitle "playchess.com"]
[Source "ChessBase"]
[SourceQuality "1"]
[TimeControl "40/5400+30:1800+30"]

1. e4 {[%emt 0:00:05]} e6 {[%emt 0:00:16]} 2. d4 {[%emt 0:00:11]} d5 {[%emt 0:00:15]} 3. Nc3 {[%emt 0:00:24]} Nf6 {[%emt 0:01:04]} 4. Bg5 {[%emt 0:00:27]} dxe4 {[%emt 0:00:14]} 5. Nxe4 {[%emt 0:00:10]} Be7 {[%emt 0:00:14]} 6. Nxf6+ {[%emt 0:01:17]} Bxf6 {[%emt 0:00:30]} 7. Bxf6 {[%emt 0:00:20]} Qxf6 {[%emt 0:00:14]} 8. Nf3 {[%emt 0:00:43]} b6 {[%emt 0:03:38]} 9. Bb5+ {[%emt 0:02:30]} c6 {[%emt 0:01:52]} 10. Bd3 {[%emt 0:00:14]} Nd7 {[%emt 0:03:32]} 11. Qe2 {[%emt 0:03:04]} Bb7 {[%emt 0:03:44]} 12. Be4 {[%emt 0:01:24]} O-O {[%emt 0:03:10]} 13. Ne5 {[%emt 0:14:05]} Nxe5 {[%emt 0:06:40]} 14. dxe5 {[%emt 0:00:26]} Qe7 {[%emt 0:00:22]} 15. O-O {[%emt 0:01:09]} Rad8 {[%emt 0:10:56]} 16. Rad1 {[%emt 0:06:51]} h6 {[%emt 0:04:45]} 17. f4 {[%emt 0:05:17]} Qc5+ {[%emt 0:11:36]} 18. Kh1 {[%emt 0:00:11]} Qe7 {[%emt 0:00:57]} 19. Qf3 {[%emt 0:04:15]} Ba6 {[%emt 0:06:45]} 20. Rfe1 {[%emt 0:00:24]} c5 {[%emt 0:00:38]} 21. f5 {[%emt 0:07:25]} exf5 {[%emt 0:03:38]} 22. Qxf5 {[%emt 0:00:25]} g6 {[%emt 0:00:11]} 23. Qf4 {[%emt 0:00:20]} Rxd1 {[%emt 0:02:12]} 24. Rxd1 {[%emt 0:00:11]} Rd8 {[%emt 0:00:18]} 25. Bd5 {[%emt 0:01:08]} Kg7 {[%emt 0:04:16]} 26. c4 {[%emt 0:01:20]} Bc8 {[%emt 0:01:02]} 27. h3 {[%emt 0:09:42]} Be6 {[%emt 0:03:06]} 28. Qe4 {[%emt 0:00:55]} Bf5 {[%emt 0:03:05]} 29. Qf4 {[%emt 0:01:50]} Be6 {[%emt 0:00:31]} 30. Qe4 {[%emt 0:04:30]} Bf5 {[%emt 0:00:19]} 31. Qf4 {[%emt 0:03:34]} 1/2-1/2

[Event "FIDE World Junior U20-ch Girls 2025"]
[Site "Petrovac"]
[Date "2025.02.25"]
[Round "1.21"]
[White "Kaliakhmet, Elnaz"]
[Black "Imomkuzieva, Nilufarkhon"]
[Result "1/2-1/2"]
[Annotator "ChessBase"]
[ECO "D85"]
[WhiteElo "2242"]
[BlackElo "1983"]
[PlyCount "103"]
[EventDate "2025.02.23"]
[EventType "swiss"]
[EventCountry "MNE"]
[SourceTitle "playchess.com"]
[Source "ChessBase"]
[SourceQuality "1"]
[TimeControl "40/5400+30:1800+30"]

1. d4 {[%emt 0:00:04]} Nf6 {[%emt 0:00:10]} 2. c4 {[%emt 0:00:06]} g6 {[%emt 0:00:03]} 3. Nc3 {[%emt 0:00:13]} d5 {[%emt 0:00:03]} 4. cxd5 {[%emt 0:00:06]} Nxd5 {[%emt 0:00:03]} 5. e4 {[%emt 0:00:18]} Nxc3 {[%emt 0:00:04]} 6. bxc3 {[%emt 0:00:04]} Bg7 {[%emt 0:00:04]} 7. Nf3 {[%emt 0:00:25]} c5 {[%emt 0:00:06]} 8. Bb5+ {[%emt 0:04:36]} Nc6 {[%emt 0:00:14]} 9. O-O {[%emt 0:00:10]} a6 {[%emt 0:03:12]} 10. Bxc6+ {[%emt 0:01:47]} bxc6 {[%emt 0:00:05]} 11. Qc2 {[%emt 0:01:34]} O-O {[%emt 0:00:55]} 12. Ba3 {[%emt 0:10:20]} cxd4 {[%emt 0:13:03]} 13. cxd4 {[%emt 0:00:04]} Qc7 {[%emt 0:01:11]} 14. Qc5 {[%emt 0:00:37]} Re8 {[%emt 0:07:49]} 15. Rac1 {[%emt 0:10:15]} Qf4 {[%emt 0:09:13]} 16. Rfe1 {[%emt 0:24:11]} Bh3 {[%emt 0:04:31]} 17. Re3 {[%emt 0:09:18]} Bd7 {[%emt 0:08:28]} 18. Ne5 {[%emt 0:11:57]} Bxe5 {[%emt 0:00:40]} 19. dxe5 {[%emt 0:00:10]} Rab8 {[%emt 0:01:30]} 20. Qd4 {[%emt 0:02:56]} Be6 {[%emt 0:03:00]} 21. Rf3 {[%emt 0:01:38]} c5 {[%emt 0:01:36]} 22. Qxc5 {[%emt 0:04:30]} Qxe4 {[%emt 0:00:08]} 23. Re3 {[%emt 0:00:13]} Qb7 {[%emt 0:00:18]} 24. Qa5 {[%emt 0:04:08]} Bxa2 {[%emt 0:01:19]} 25. h3 {[%emt 0:01:10]} Bd5 {[%emt 0:01:11]} 26. Rc7 {[%emt 0:02:10]} Qb5 {[%emt 0:00:29]} 27. Qc3 {[%emt 0:02:58]} Qb1+ {[%emt 0:00:47]} 28. Re1 {[%emt 0:00:39]} Qb3 {[%emt 0:00:42]} 29. Qxb3 {[%emt 0:00:31]} Bxb3 {[%emt 0:00:05]} 30. Bxe7 {[%emt 0:00:13]} a5 {[%emt 0:00:13]} 31. Rec1 {[%emt 0:01:50]} a4 {[%emt 0:00:12]} 32. Ra7 {[%emt 0:00:21]} h6 {[%emt 0:02:01]} 33. Bd6 {[%emt 0:00:12]} Ra8 {[%emt 0:00:11]} 34. Rcc7 {[%emt 0:00:29]} Bd5 {[%emt 0:00:48]} 35. Kh2 {[%emt 0:00:27]} g5 {[%emt 0:00:24]} 36. Rd7 {[%emt 0:03:05]} Kg7 {[%emt 0:01:26]} 37. Bc5 {[%emt 0:01:33]} Be6 {[%emt 0:00:47]} 38. Rdc7 {[%emt 0:01:21]} Kg6 {[%emt 0:00:28]} 39. Kg3 {[%emt 0:01:25]} Bd5 {[%emt 0:00:26]} 40. Bd6 {[%emt 0:00:57]} Kf5 {[%emt 0:00:53]} 41. f3 {[%emt 0:30:20]} Rxa7 {[%emt 0:32:06]} 42. Rxa7 {[%emt 0:00:01]} Ra8 {[%emt 0:00:21]} 43. Rxa8 {[%emt 0:01:10]} Bxa8 {[%emt 0:00:22]} 44. Kf2 {[%emt 0:00:40]} Ke6 {[%emt 0:00:16]} 45. Ke3 {[%emt 0:01:02]} f6 {[%emt 0:00:17]} 46. Kd4 {[%emt 0:00:35]} fxe5+ {[%emt 0:00:15]} 47. Bxe5 {[%emt 0:00:01]} a3 {[%emt 0:00:06]} 48. Bg7 {[%emt 0:00:05]} a2 {[%emt 0:00:04]} 49. Ke3 {[%emt 0:00:16]} Bc6 {[%emt 0:00:23]} 50. g3 {[%emt 0:00:16]} Kf7 {[%emt 0:01:10]} 51. Bh8 {[%emt 0:00:11]} Bd7 {[%emt 0:00:28]} 52. h4 {[%emt 0:00:18]} 1/2-1/2

[Event "FIDE World Junior U20-ch Girls 2025"]
[Site "Petrovac"]
[Date "2025.02.25"]
[Round "1.22"]
[White "Braeutigam, Katerina"]
[Black "Mikheeva, Galina"]
[Result "0-1"]
[Annotator "ChessBase"]
[ECO "D00"]
[WhiteElo "1981"]
[BlackElo "2238"]
[PlyCount "98"]
[EventDate "2025.02.23"]
[EventType "swiss"]
[EventCountry "MNE"]
[SourceTitle "playchess.com"]
[Source "ChessBase"]
[SourceQuality "1"]
[TimeControl "40/5400+30:1800+30"]

1. d4 {[%emt 0:00:03]} d5 {[%emt 0:00:04]} 2. Bf4 {[%emt 0:00:05]} Nf6 {[%emt 0:00:06]} 3. e3 {[%emt 0:00:08]} e6 {[%emt 0:00:05]} 4. Nf3 {[%emt 0:00:09]} Bd6 {[%emt 0:00:05]} 5. Bd3 {[%emt 0:00:10]} c5 {[%emt 0:02:31]} 6. dxc5 {[%emt 0:00:20]} Bxc5 {[%emt 0:11:49]} 7. O-O {[%emt 0:00:13]} O-O {[%emt 0:01:19]} 8. c4 {[%emt 0:00:32]} b6 {[%emt 0:06:40]} 9. Nc3 {[%emt 0:03:48]} Bb7 {[%emt 0:04:38]} 10. a3 {[%emt 0:08:10]} h6 {[%emt 0:07:37]} 11. cxd5 {[%emt 0:14:21]} Nxd5 {[%emt 0:03:15]} 12. Nxd5 {[%emt 0:07:12]} Qxd5 {[%emt 0:01:39]} 13. e4 {[%emt 0:08:49]} Qd8 {[%emt 0:19:02]} 14. b4 {[%emt 0:13:07]} Be7 {[%emt 0:07:05]} 15. Qe2 {[%emt 0:06:45]} Nc6 {[%emt 0:01:45]} 16. Qe3 {[%emt 0:14:29]} a5 {[%emt 0:06:08]} 17. e5 {[%emt 0:08:36]} axb4 {[%emt 0:06:24]} 18. Bxh6 {[%emt 0:08:23]} Ba6 {[%emt 0:13:02]} 19. Rfd1 {[%emt 0:03:43]} Bxd3 {[%emt 0:00:09]} 20. Rxd3 {[%emt 0:00:05]} Qc7 {[%emt 0:00:27]} 21. Bg5 {[%emt 0:01:15]} Bc5 {[%emt 0:03:58]} 22. Qe4 {[%emt 0:00:20]} Rxa3 {[%emt 0:01:29]} 23. Rdxa3 {[%emt 0:00:37]} bxa3 {[%emt 0:00:00]} 24. Bf6 {[%emt 0:00:20]} Ne7 {[%emt 0:00:33]} 25. Qg4 {[%emt 0:00:45]} Ng6 {[%emt 0:01:16]} 26. h4 {[%emt 0:00:30]} gxf6 {[%emt 0:00:34]} 27. h5 {[%emt 0:00:20]} fxe5 {[%emt 0:00:46]} 28. hxg6 {[%emt 0:00:07]} f5 {[%emt 0:00:08]} 29. Qh5 {[%emt 0:00:59]} Qg7 {[%emt 0:00:56]} 30. Ra2 {[%emt 0:00:34]} e4 {[%emt 0:01:14]} 31. Ne5 {[%emt 0:00:19]} Qh8 {[%emt 0:00:38]} 32. Qxh8+ {[%emt 0:00:44]} Kxh8 {[%emt 0:00:01]} 33. Nd7 {[%emt 0:00:29]} Ra8 {[%emt 0:00:09]} 34. Nxc5 {[%emt 0:00:30]} bxc5 {[%emt 0:00:01]} 35. Kf1 {[%emt 0:00:09]} Kg7 {[%emt 0:01:16]} 36. Ke2 {[%emt 0:00:06]} Kxg6 {[%emt 0:00:14]} 37. Kd2 {[%emt 0:00:12]} Kf6 {[%emt 0:00:38]} 38. Kc3 {[%emt 0:00:05]} Rg8 {[%emt 0:01:14]} 39. g3 {[%emt 0:00:51]} e3 {[%emt 0:00:07]} 40. fxe3 {[%emt 0:01:36]} Rxg3 {[%emt 0:00:04]} 41. Kc4 {[%emt 0:01:24]} Rxe3 {[%emt 0:00:15]} 42. Kxc5 {[%emt 0:00:05]} f4 {[%emt 0:00:07]} 43. Rf2 {[%emt 0:01:08]} Kf5 {[%emt 0:00:18]} 44. Kd4 {[%emt 0:00:40]} e5+ {[%emt 0:00:07]} 45. Kd5 {[%emt 0:00:07]} f3 {[%emt 0:00:52]} 46. Ra2 {[%emt 0:00:38]} Kf4 {[%emt 0:00:22]} 47. Ke6 {[%emt 0:00:56]} Kg3 {[%emt 0:00:22]} 48. Kf5 {[%emt 0:00:20]} f2 {[%emt 0:00:04]} 49. Ra1 {[%emt 0:00:06]} Kg2 {[%emt 0:00:25]} 0-1

[Event "FIDE World Junior U20-ch Girls 2025"]
[Site "Petrovac"]
[Date "2025.02.25"]
[Round "1.23"]
[White "Zhapova, Yana"]
[Black "Ostensson, Julia"]
[Result "1-0"]
[Annotator "ChessBase"]
[ECO "B41"]
[WhiteElo "2234"]
[BlackElo "1979"]
[PlyCount "63"]
[EventDate "2025.02.23"]
[EventType "swiss"]
[EventCountry "MNE"]
[SourceTitle "playchess.com"]
[Source "ChessBase"]
[SourceQuality "1"]
[TimeControl "40/5400+30:1800+30"]

1. e4 {[%emt 0:00:04]} c5 {[%emt 0:00:06]} 2. Nf3 {[%emt 0:00:08]} e6 {[%emt 0:00:05]} 3. d4 {[%emt 0:00:15]} cxd4 {[%emt 0:00:05]} 4. Nxd4 {[%emt 0:00:07]} a6 {[%emt 0:00:04]} 5. c4 {[%emt 0:00:15]} Nf6 {[%emt 0:00:04]} 6. Nc3 {[%emt 0:00:11]} Qc7 {[%emt 0:00:12]} 7. Be2 {[%emt 0:00:08]} Bb4 {[%emt 0:00:09]} 8. Qd3 {[%emt 0:00:39]} Nc6 {[%emt 0:04:52]} 9. Nxc6 {[%emt 0:16:16]} bxc6 {[%emt 0:10:30]} 10. a3 {[%emt 0:03:54]} Bd6 {[%emt 0:21:05]} 11. h3 {[%emt 0:02:23]} Bb7 {[%emt 0:06:25]} 12. O-O {[%emt 0:01:16]} O-O {[%emt 0:10:26]} 13. Be3 {[%emt 0:03:34]} Bh2+ {[%emt 0:29:08]} 14. Kh1 {[%emt 0:00:06]} Bf4 {[%emt 0:00:02]} 15. Bd4 {[%emt 0:05:21]} c5 {[%emt 0:02:57]} 16. Bxf6 {[%emt 0:03:43]} gxf6 {[%emt 0:00:05]} 17. Bg4 {[%emt 0:01:21]} Kh8 {[%emt 0:01:47]} 18. Ne2 {[%emt 0:01:38]} Bc6 {[%emt 0:03:55]} 19. Rab1 {[%emt 0:05:13]} a5 {[%emt 0:01:57]} 20. Qf3 {[%emt 0:03:51]} Be5 {[%emt 0:00:22]} 21. Qe3 {[%emt 0:01:18]} Rab8 {[%emt 0:04:44]} 22. b3 {[%emt 0:02:32]} Bd6 {[%emt 0:01:57]} 23. a4 {[%emt 0:02:25]} Rg8 {[%emt 0:00:10]} 24. f4 {[%emt 0:00:28]} f5 {[%emt 0:00:50]} 25. Qc3+ {[%emt 0:02:02]} Rg7 {[%emt 0:00:09]} 26. exf5 {[%emt 0:00:10]} exf5 {[%emt 0:00:32]} 27. Bf3 {[%emt 0:00:08]} Re8 {[%emt 0:00:46]} 28. Rbe1 {[%emt 0:02:42]} Re6 {[%emt 0:00:32]} 29. Bd5 {[%emt 0:01:43]} Bxd5 {[%emt 0:00:27]} 30. cxd5 {[%emt 0:00:04]} Re4 {[%emt 0:00:35]} 31. Ng3 {[%emt 0:00:22]} Rxe1 {[%emt 0:01:01]} 32. Rxe1 {[%emt 0:00:04]} 1-0